Cogmind - Beta 13 @@@ ROGUE MODE // 2024.04.27 @ 08:15:22 Player: Sandwich Result: Destroyed by 1O-ZGR(R) with Subdweller Machine Gun Performance ------------- Evolutions (0) 0 Regions Visited (2) 400 Robots Destroyed (19) 95 Value Destroyed (427) 427 Prototype IDs (2) 40 Alien Tech Used (0) 0 Bonus (0) 0 TOTAL SCORE: 962 Bonus ------- None Cogmind --------- Core Integrity 0/250 Matter 292/300 Energy 200/200 System Corruption 0% Temperature Cool (0) Movement Walking (120) Location -10/Subcaves Parts ------- > --- POWER (1) -------- Subdweller Power Source > --- PROPULSION (2) --- Aluminum Leg Aluminum Leg > --- UTILITY (2) ------ Heat Sink Small Storage Unit > --- WEAPON (2) ------- Subdweller Machine Gun > --- INVENTORY (8) ---- Aluminum Leg Aluminum Leg Medium Matter Pod (100) Terrain Scanner Seismic Detector Weapon Shielding Tractor Beam Battle Cannon Peak State ------------ > --- POWER ------------ Subdweller Power Source > --- PROPULSION ------- Aluminum Leg Aluminum Leg > --- UTILITY ---------- Heat Sink Small Storage Unit > --- WEAPON ----------- Light Assault Rifle Subdweller Machine Gun > --- INVENTORY -------- Aluminum Leg Aluminum Leg Medium Matter Pod Terrain Scanner Seismic Detector Weapon Shielding Tractor Beam Battle Cannon [Rating: 9] Favorites ----------- Power Ion Engine Engine Ion Engine Propulsion Aluminum Leg Leg Aluminum Leg Utility Small Storage Unit Device Heat Sink Storage Small Storage Unit Weapon Assault Rifle Ballistic Gun Assault Rifle Build | -11 -10 -10 ------- Run | Yrd Mat Sub Slots Evolved . | . . . Power . | . . . Propulsion . | . . . Utility . | . . . Weapon . | . . . Parts Attached 11 | 6 2 3 Power 2 | 1 . 1 Engine 2 | 1 . 1 Core . | . . . Reactor . | . . . Propulsion 3 | 2 1 . Treads . | . . . Leg 3 | 2 1 . Wheel . | . . . Hover . | . . . Flight . | . . . Utility 2 | 1 1 . Device 1 | . 1 . Storage 1 | 1 . . Processor . | . . . Hackware . | . . . Protection . | . . . Artifact . | . . . Weapon 4 | 2 . 2 Energy Gun . | . . . Energy Cannon . | . . . Ballistic Gun 4 | 2 . 2 Ballistic Cannon . | . . . Launcher . | . . . Special Weapon . | . . . Impact Weapon . | . . . Slashing Weapon . | . . . Piercing Weapon . | . . . Special Melee Weapon . | . . . Unidentified Prototypes . | . . . Parts Lost 1 | . . 1 Power . | . . . Propulsion . | . . . Utility . | . . . Weapon 1 | . . 1 Highest Loss Streak 1 | . . 1 To Critical Strikes . | . . . Average Slot Usage (%) 98 | . 97 99 Engine 14 | . 14 14 Leg 28 | . 28 28 Device 12 | . 11 14 Storage 14 | . 14 14 Ballistic Gun 27 | . 28 27 Naked Turns . | . . . Heaviest Build 16 | 14 15 16 Greatest Support 20 | 20 20 20 Greatest Overweight (x) . | . . . Average Overweight (x) . | . . . Largest Inventory Capacity 8 | 8 8 8 Average Capacity 7 | 6 8 8 Most Carried 8 | . 8 8 Average Carried 6 | . 5 7 Final Capacity 8 | 8 8 8 Final Carried 8 | . 8 8 Class Distribution -------------------- 91% | Mutant 8% | Scavenger-Mutant Dominant Class ---------------- Mutant | -10/Materials Mutant | -10/Subcaves Resources | -11 -10 -10 ----------- Run | Yrd Mat Sub Matter Collected 722 | 214 308 200 Remotely . | . . . Salvage Created 562 | . 318 244 Parts 49 | . 32 17 Haulers Intercepted . | . . . Recyclers Shooed . | . . . Parts Field Recycled . | . . . Retrieved Matter . | . . . Parts Self-Destructed 2 | . . 2 Prevented . | . . . Kills | -11 -10 -10 ------- Run | Yrd Mat Sub Combat Hostiles Destroyed 18 | . 13 5 Guns 18 | . 13 5 Classes Destroyed 4 | . 3 1 Worker 1 | . 1 . Swarmer 9 | . 9 . Grunt 4 | . 4 . Subdweller 5 | . . 5 Best Kill Streak 3 | . 3 2 Combat Bots Only 3 | . 3 2 Max Kills in Single Turn 2 | . 2 1 Gunslinging 1 | . 1 . Exploded . | . . . Melee . | . . . Uniques/NPCs Destroyed . | . . . Combat | -11 -10 -10 -------- Run | Yrd Mat Sub Hostile Shots Fired 72 | . 39 33 Missed 24 | . 12 12 Damage Taken 709 | . 229 480 Core 260 | . 66 194 Absorbed by Shields . | . . . Core Remaining (%) 100 | 100 . . Volleys Fired 57 | . 40 17 Largest 2 | . 2 2 Hottest 50 | . 40 50 Shots Fired 112 | . 80 32 Gun 112 | . 80 32 Cannon . | . . . Launcher . | . . . Special . | . . . Kinetic 112 | . 80 32 Thermal . | . . . Explosive . | . . . Electromagnetic . | . . . Robot Hit Streak 23 | . 8 23 Robot Miss Streak 4 | . 4 1 Penetration Max . | . . . Secondary Targets 5 | . 4 1 Max Gunslinging Chain 1 | . 1 1 Shots Hit Robots 88 | . 60 28 Core Hits 31 | . 19 12 Critical Kills . | . . . Critical Parts Destroyed . | . . . Critical Strikes . | . . . Melee Attacks . | . . . Impact . | . . . Slashing . | . . . Piercing . | . . . Sneak Attacks . | . . . Combat Hostiles . | . . . Follow-up Attacks . | . . . Damage Inflicted 1098 | . 754 344 Guns 1098 | . 754 344 Cannons . | . . . Explosions . | . . . Melee . | . . . Ramming . | . . . Kinetic 1098 | . 754 344 Thermal . | . . . Explosive . | . . . Electromagnetic . | . . . Impact . | . . . Slashing . | . . . Piercing . | . . . Highest Corruption . | . . . Average Corruption . | . . . Corruption Purged . | . . . Corruption Blocked . | . . . Overload Shots . | . . . Overflow Damage . | . . . Projectiles . | . . . Explosions . | . . . Melee . | . . . Knockbacks . | . . . Impact . | . . . Kinetic . | . . . Secondary . | . . . Self-Inflicted Damage . | . . . Shots . | . . . Rammed . | . . . Targets Rammed . | . . . Kicked . | . . . Crushed . | . . . Highest Temperature . | . . . Average Temperature . | . . . Received Heat Transfer 126 | . 30 96 Siege Activations . | . . . Robots Corrupted . | . . . Combat Hostiles . | . . . Parts Fried . | . . . Impact Corruptions . | . . . Robots Melted . | . . . Combat Hostiles . | . . . Parts Melted . | . . . Heat Transferred . | . . . Parts Sabotaged . | . . . Parts Stolen . | . . . Parts Stripped . | . . . Power Chain Reactions . | . . . Alert | -11 -10 -10 ------- Run | Yrd Mat Sub Peak Influence 200 | . 200 . Initial . | . . . Average 48 | . 50 . Maximum Alert Level 1 | . 1 . Low Security (%) 98 | 100 98 . Level 1 1 | . 1 . Level 2 . | . . . Level 3 . | . . . Level 4 . | . . . Level 5 . | . . . High Security . | . . . Max Security . | . . . Squads Dispatched 5 | . 5 . Investigation 2 | . 2 . Extermination . | . . . Reinforcement 3 | . 3 . Assault . | . . . Garrison . | . . . Intercept . | . . . Searches Triggered . | . . . Construction Impeded . | . . . Haulers Reinforced . | . . . Active Scanning Responses . | . . . Cargo Convoy Interrupts . | . . . Stealth | -11 -10 -10 --------- Run | Yrd Mat Sub Distress Signals 1 | . 1 . Communications Jammed . | . . . Distress Signals . | . . . Times Spotted 27 | . 21 6 Peak Tracking Total 4 | . 4 2 Tactical Retreats . | . . . Traps | -11 -10 -10 ------- Run | Yrd Mat Sub Traps Triggered 2 | . 1 1 Indirectly . | . . . Trap Hack Attempts . | . . . Triggered . | . . . Disarmed . | . . . Reprogrammed . | . . . Reused . | . . . Traps Extracted . | . . . Installed . | . . . Triggered . | . . . Machines | -11 -10 -10 ---------- Run | Yrd Mat Sub Machines Disabled . | . . . Max in Single Turn . | . . . Machines Repaired . | . . . Machines Dismantled . | . . . Machines Sabotaged . | . . . Overloaded Fab Kills . | . . . Hacking | -11 -10 -10 --------- Run | Yrd Mat Sub Machines Accessed 5 | . 5 . Terminals 5 | . 5 . Fabricators . | . . . Repair Stations . | . . . Recycling Units . | . . . Scanalyzers . | . . . Garrison Access . | . . . Total Hacks 15 | . 15 . Successful 9 | . 9 . Failed 6 | . 6 . Catastrophic 2 | . 2 . Database Lockouts . | . . . Manual 9 | . 9 . Terminals 15 | . 15 . Fabricators . | . . . Repair Stations . | . . . Recycling Units . | . . . Scanalyzers . | . . . Garrison Access . | . . . Terminal Hacks 5 | . 5 . Robot Analysis 1 | . 1 . Prototype ID Bank 1 | . 1 . Unreport Threat 2 | . 2 . Recall Reinforcements 1 | . 1 . Fabricator Hacks . | . . . Repair Station Hacks . | . . . Recycling Unit Hacks . | . . . Scanalyzer . | . . . Garrison Access Hacks . | . . . Unauthorized Hacks 4 | . 4 . Terminals 4 | . 4 . Botnet 4 | . 4 . Fabricators . | . . . Repair Stations . | . . . Recycling Units . | . . . Scanalyzers . | . . . Garrison Access . | . . . Data Cores Recovered . | . . . Used . | . . . Hacking Detections 5 | . 5 . Full Trace Events 1 | . 1 . Feedback Events . | . . . Feedback Blocked . | . . . Robot Schematics Acquired . | . . . Robots Built . | . . . Authchips . | . . . Time . | . . . Total Robot Build Rating . | . . . Part Schematics Acquired . | . . . Parts Built . | . . . Authchips . | . . . Time . | . . . Total Part Build Rating . | . . . Parts Repaired . | . . . Time . | . . . Parts Recycled . | . . . Recycled Matter . | . . . Retrieved Matter . | . . . Retrieved Components . | . . . Parts Scanalyzed . | . . . Part Schematics Acquired . | . . . Parts Damaged . | . . . Bothacking | -11 -10 -10 ------------ Run | Yrd Mat Sub Used RIF Installer . | . . . Robots Hacked . | . . . Non-combat . | . . . Combat . | . . . Robot Hacks Applied . | . . . Relay Couplers Released . | . . . Fabnet Peak Effective % . | . . . Robots Rewired . | . . . Allies Hacked . | . . . Hacks Repelled . | . . . Allies | -11 -10 -10 -------- Run | Yrd Mat Sub Total Allies . | . . . Largest Group . | . . . Highest-Rated Group . | . . . Highest-Rated Ally . | . . . Total Orders . | . . . Ally Attacks . | . . . Total Damage . | . . . Kills . | . . . Allies Corrupted . | . . . Allies Melted . | . . . Intel | -11 -10 -10 ------- Run | Yrd Mat Sub Robot Analysis Total 1 | . 1 . Derelict Logs Recovered . | . . . Drone Launches . | . . . Drone Recoveries . | . . . Exploration | -11 -10 -10 ------------- Run | Yrd Mat Sub Turns Passed 1911 | 59 1203 649 Spaces Moved 1029 | 43 510 476 Core 1 | 1 . . Treads . | . . . Legs 1028 | 42 510 476 Wheels . | . . . Hover . | . . . Flight . | . . . Fastest Speed 50 | 50 120 120 Average Speed 119 | 118 120 120 Slowest Speed 120 | 120 120 120 Overloaded Moves . | . . . Propulsion Burnouts . | . . . Robots Hopped . | . . . Cave-ins Triggered . | . . . Exploration Rate (%) 40 | 3 91 28 Regions Visited 2 Branch Regions 1 Pre-discovered Areas 1 | . . 1 Known Exits Taken . | . . . Unknown Exits Taken 2 | 1 1 . Scrap Searched 1 | . . 1 Spaces Dug . | . . . Terrain Destroyed . | . . . Melee . | . . . Projectile . | . . . AOE . | . . . Terrain Rammed . | . . . Walls Destroyed . | . . . Machines Disabled . | . . . Actions | -11 -10 -10 --------- Run | Yrd Mat Sub Total 1595 | 48 1023 524 Wait 484 | . 460 24 Move 1027 | 42 509 476 Hop . | . . . Pick Up 11 | . 10 1 Fast Attach 6 | 6 . . Attach 1 | . 1 . Detach . | . . . Swap 4 | . 1 3 Drop 5 | . 2 3 Fire 57 | . 40 17 Melee . | . . . Ram . | . . . Kick . | . . . Crush . | . . . Escape Stasis . | . . . Rewire . | . . . Trap . | . . . Miscellaneous . | . . . Route ------- -11/Scrapyard -10/Materials (discovered 6 exits: [*Mat x3] / [*Min x2] / [*Sub]) -10/Subcaves (discovered 1 exit: [*Mat]) History --------- Turn | Location | Event 16 | -11/Scrapyard | Discovered new exit (range 15) 60 | -11/Scrapyard | Entered Materials 200 | -10/Materials | Discovered new exit (range 10) 314 | -10/Materials | Build established: Mutant 420 | -10/Materials | Discovered new exit (range 9) 421 | -10/Materials | Discovered new exit (range 16) 537 | -10/Materials | Discovered new exit (range 8) 687 | -10/Materials | Discovered new exit (range 14) 1226 | -10/Materials | Discovered new exit (range 4) 1263 | -10/Materials | Entered Subcaves 1276 | -10/Subcaves | Learned location of Zion (-6) 1276 | -10/Subcaves | Met a Zionite searching for "candidates" 1359 | -10/Subcaves | Discovered new exit (range 15) 1741 | -10/Subcaves | Core integrity fell below 50% 1801 | -10/Subcaves | Shifting Twisted Machinery released Sub. Beam Cannon 1843 | -10/Subcaves | A swath of the cavern ceiling suddenly collapsed 1903 | -10/Subcaves | Core integrity fell below 20% 1912 | -10/Subcaves | Destroyed by 1O-ZGR(R) with Subdweller Machine Gun Last Messages --------------- 01502_ Subatomizers dissect the Sub. Laser. 01502_ IE-JLS(R) destroyed. 01506_ Acquired 56 matter. 01507_ Acquired 41 matter. 01541_ Subatomizers dissect the Sub. Laser. 01715_ 46-IEJ(R) destroyed. 01720_ Acquired 39 matter. 01722_ Dropped Ion Engine. 01743_ SR-Q8R(R) destroyed. 01748_ Dropped Assault Rifle. 01749_ Acquired Battle Cannon. 01751_ Dropped Assault Rifle. 01754_ Acquired 42 matter. 01793_ Triggered Shrapnel Trap. 01793_ An expanding cloud of shrapnel blasts out in all directions. Sub. Beam Cannon falls loose from the Twisted Machinery. A swath of the cavern ceiling suddenly collapses. 01889_ Subatomizers dissect the Sub. Optics. 01906_ Lgt. Assault Rifle destroyed. 01909_ 5H-TMB(R) destroyed. Map ----- +----------------------------------------------------+ | ?###### ## ##???????# ###"" #????????????????? | | ## #####???# ]" """ ??????????????? | | # #### "#"#???## " #"##????????????????? | | ##??#### ##??# " #???????????????????? | | #??????# #### ##""#??????????????????? | | ##??????# ## # ##??????????????????? | | ##???????##" ##? ???????????????????? | | #?????????#" " # # #???"??????????????????? | | ###???????##" ##### ##?????????????????????? | | #????????### ##???## #?????????????????????? | | #?????###### ####### ##?????????????????????? | | ####### ## #?????????????????????? | | ## ## # # #####?????????????????????? | | # # # # ###########???????????????????? | | # #"##### ## ##????# #???????????????????? | | ## #""#"# #????# #???????????????????? | | #?###""####### #????# #????????????????????? | | # #??###"##???####???## #????????????????????? | | #" #??#"""###### ###### ###??????????????????? | | # ##?#####""""## ## #??????????????????? | | ##! ## ##"##""# #??????????????????? | | #&%#### ###"#### ##??????????????????? | | #*!*#?## ##?##??## ####???????????????????? | | #%#######??????## #??????????????????????? | | =| [# #???????# #??????????????????????? | | ![ ##??????# @#??????????????????????? | | " ##????## [! #??????????????????????? | | "##"### #?# ## R%###??????????????????????? | | "#" ## #?# #### "#"#??????????????????????? | | "# # ##### ## """??????????????????????? | | ### ## ## #### ""??????????????????????? | | #?"" # #### # ##"?????????????????????? | | ##"## ####?#?????????????????????? | | ## ##""" ### ##????????????????????? | | """"" #????????????????????? | | """ " #?????????????????????? | | ##"## ### #?????????????????????? | | ????# ##?#& ! ## #??????????????????????? | | ????#### ##### [ #?????????????????????????? | | ???????### ##!& #?????????????????????????? | | ???????## ## #?????????????????????????? | | ??????## #### #####?????????????????????????? | | ??????# ### #####?????????????????????????? | | ??????# ##????????????????????????? | | ??????# ##???????????????????????? | | ??###?### ##? #??????????????????? | | ?# ###?## ### ## #??????????????????? | | # #?## #?? ### #??????????????????? | | #??# ##?###### #??????????????????? | | ######## ##?# ## #???????????????????? | +----------------------------------------------------+ Best States ------------- Heat Dissipation 35 Energy Generation 15 Energy Capacity 250 Matter Stores 300 Matter Capacity 300 Sight Range 16 Terrain Scan Density 10 Evasion (%) 55 Item Schematics ----------------- None Robot Schematics ------------------ None Fabricated ------------ Nothing Alien Tech Used ----------------- None Achievements -------------- None Challenges ------------ None Game ------ Seed SurgeImprinterBooster Manual? 0 Play Time 00:17:41 Cumulative 212.9 hours Start 2024.04.17 @ 22:07:58 End 2024.04.27 @ 08:15:22 Sessions 2 Manual Loads 0 Difficulty Rogue Special Mode None Game No. 274 Rogue 230 Adventurer 4 Explorer 40 Win Type - Total 9 Types 7/1/0/1/0/0/0/0/0 Lore% 51 Gallery% 74 Achievement% 59 Wizard Run 0 Options --------- Layout 0 ASCII 0 Keyboard 0 Movement Numpad Keybinds 0 Fullscreen 1 Font 24/Smallcaps Map View 76x50 Zoom Use 0% Tactical HUD 1 Map Filters NONE Filters NONE Steam 1 RUN: 16a5fd87-7528-4958-b9a2-0aa16c5ea605